Cogmind - Beta 14 @@@ ROGUE MODE // 2024.09.08 @ 16:32:27 Player: Maulwurf Result: Destroyed by D-53 Grenadier with Mini Grenade Launcher Performance ------------- Evolutions (0) 0 Regions Visited (2) 400 Robots Destroyed (13) 65 Value Destroyed (149) 149 Prototype IDs (0) 0 Alien Tech Used (0) 0 Bonus (0) 0 TOTAL SCORE: 614 Bonus ------- None Cogmind --------- Core Integrity 0/250 Matter 289/300 Energy 118/125 System Corruption 0% Temperature Cool (0) Movement Core (900) Ox17 Location -10/Mines Parts ------- > --- POWER (1) -------- Light Ion Engine > --- PROPULSION (2) --- (None) > --- UTILITY (2) ------ Medium Storage Unit High-capacity Storage Unit > --- WEAPON (2) ------- (None) > --- INVENTORY (20) --- Light Ion Engine Medium Matter Pod (49) Medium Matter Pod (0) Medium Matter Pod (0) Transport Network Coupler ECM Suite Light Armor Plating Tractor Beam Assault Rifle Assault Rifle Light Assault Rifle Peak State ------------ > --- POWER ------------ Light Ion Engine > --- PROPULSION ------- Aluminum Leg Aluminum Leg > --- UTILITY ---------- Medium Storage Unit High-capacity Storage Unit > --- WEAPON ----------- Medium Laser Rocket Launcher > --- INVENTORY -------- Light Ion Engine Light Ion Engine Light Ion Engine Light Treads Light Treads Aluminum Leg Aluminum Leg Small Storage Unit Small Storage Unit Small Storage Unit Medium Matter Pod Medium Matter Pod Medium Matter Pod Transport Network Coupler ECM Suite Light Armor Plating Tractor Beam EM Pulse Gun Assault Rifle Assault Rifle [Rating: 10] Favorites ----------- Power Light Ion Engine Engine Light Ion Engine Propulsion Aluminum Leg Leg Aluminum Leg Utility High-capacity Storage Unit Storage High-capacity Storage Unit Weapon EM Pulse Gun Energy Gun EM Pulse Gun Ballistic Gun Assault Rifle Launcher Rocket Launcher Build | -11 -10 -10 ------- Run | Yrd Mat Min Slots Evolved . | . . . Power . | . . . Propulsion . | . . . Utility . | . . . Weapon . | . . . Parts Attached 17 | 6 1 10 Power 4 | 1 . 3 Engine 4 | 1 . 3 Core . | . . . Reactor . | . . . Propulsion 4 | 2 . 2 Treads . | . . . Leg 4 | 2 . 2 Wheel . | . . . Hover . | . . . Flight . | . . . Utility 4 | 1 1 2 Device . | . . . Storage 4 | 1 1 2 Processor . | . . . Hackware . | . . . Protection . | . . . Artifact . | . . . Weapon 5 | 2 . 3 Energy Gun 3 | 1 . 2 Energy Cannon . | . . . Ballistic Gun 1 | 1 . . Ballistic Cannon . | . . . Launcher 1 | . . 1 Special Weapon . | . . . Impact Weapon . | . . . Slashing Weapon . | . . . Piercing Weapon . | . . . Special Melee Weapon . | . . . Unidentified Prototypes . | . . . Parts Lost 10 | . . 10 Power 3 | . . 3 Propulsion 4 | . . 4 Utility . | . . . Weapon 3 | . . 3 Highest Loss Streak 6 | . . 6 To Critical Strikes . | . . . Average Slot Usage (%) 97 | . 99 96 Engine 13 | . 14 13 Leg 27 | . 28 27 Storage 27 | . 27 27 Energy Gun 17 | . 14 20 Ballistic Gun 7 | . 14 2 Launcher 1 | . . 2 Peak Build Rating 10 | 6 9 10 Average Rating 7 | 3 7 8 On Entrance 5 | . 6 9 Naked Turns . | . . . Heaviest Build 59 | 12 52 59 Greatest Support 20 | 20 20 20 Greatest Overweight (x) 5 | . 2 5 Average Overweight (x) 1 | . 1 2 Largest Inventory Capacity 20 | 8 20 20 Average Capacity 19 | 7 19 20 Most Carried 20 | 5 20 20 Average Carried 14 | 3 12 18 Final Capacity 20 | 8 20 20 Final Carried 20 | 4 20 11 Class Distribution -------------------- 100% | Mutant Dominant Class ---------------- Mutant | -10/Materials Mutant | -10/Mines Resources | -11 -10 -10 ----------- Run | Yrd Mat Min Matter Collected 460 | 260 32 168 Remotely . | . . . Salvage Created 396 | . 168 228 Parts 27 | . 19 8 Haulers Intercepted 1 | . 1 . Recyclers Shooed 1 | . 1 . Parts Field Recycled . | . . . Retrieved Matter . | . . . Parts Self-Destructed . | . . . Prevented . | . . . Kills | -11 -10 -10 ------- Run | Yrd Mat Min Combat Hostiles Destroyed 19 | . 1 18 Guns 5 | . 1 4 AOE 14 | . . 14 Classes Destroyed 10 | . 6 4 Worker 1 | . . 1 Builder 1 | . 1 . Tunneler 1 | . 1 . Hauler 1 | . 1 . Recycler 2 | . . 2 Operator 1 | . 1 . Watcher 2 | . 2 . Swarmer 3 | . . 3 Grunt 1 | . 1 . Assembled 15 | . . 15 Best Kill Streak 17 | . 5 17 Combat Bots Only 15 | . 1 15 Max Kills in Single Turn 4 | . 2 4 Gunslinging 1 | . . 1 Exploded 4 | . . 4 Melee . | . . . Uniques/NPCs Destroyed . | . . . Combat | -11 -10 -10 -------- Run | Yrd Mat Min Hostile Shots Fired 84 | . 1 83 Missed 21 | . 1 20 Damage Taken 1130 | . . 1130 Core 258 | . . 258 Absorbed by Shields . | . . . Core Remaining (%) 100 | 100 . . Volleys Fired 28 | . 8 20 Largest 2 | . 2 2 Hottest 90 | . 60 90 Shots Fired 52 | . 16 36 Gun 44 | . 16 28 Cannon . | . . . Launcher 8 | . . 8 Special . | . . . Kinetic 8 | . 8 . Thermal 17 | . . 17 Explosive 8 | . . 8 Electromagnetic 19 | . 8 11 Robot Hit Streak 7 | . 7 6 Robot Miss Streak 4 | . 1 4 Penetration Max . | . . . Secondary Targets 1 | . . 1 Max Gunslinging Chain 1 | . . 1 Shots Hit Robots 33 | . 13 20 Core Hits 47 | . 9 38 Critical Kills . | . . . Critical Parts Destroyed . | . . . Critical Strikes 1 | . . 1 Burn 1 | . . 1 Melee Attacks . | . . . Impact . | . . . Slashing . | . . . Piercing . | . . . Sneak Attacks . | . . . Combat Hostiles . | . . . Follow-up Attacks . | . . . Damage Inflicted 1535 | . 329 1206 Guns 398 | . 183 215 Cannons . | . . . Explosions 1128 | . 143 985 Melee . | . . . Ramming 9 | . 3 6 Kinetic 59 | . 59 . Thermal 319 | . 143 176 Explosive 945 | . . 945 Electromagnetic 203 | . 124 79 Impact . | . . . Slashing . | . . . Piercing . | . . . Highest Corruption . | . . . Average Corruption . | . . . Corruption Purged . | . . . Corruption Blocked . | . . . Overload Shots . | . . . Overflow Damage 5 | . . 5 Projectiles . | . . . Explosions 5 | . . 5 Melee . | . . . Knockbacks . | . . . Impact . | . . . Kinetic . | . . . Secondary . | . . . Self-Inflicted Damage 64 | . . 64 Shots 3 | . . 3 Rammed . | . . . Targets Rammed 4 | . 1 3 Kicked 4 | . 1 3 Crushed . | . . . Highest Temperature 152 | . . 152 Average Temperature 72 | . . 72 Received Heat Transfer 20 | . . 20 Siege Activations . | . . . Robots Corrupted . | . . . Combat Hostiles . | . . . Parts Fried 1 | . 1 . Impact Corruptions . | . . . Robots Melted . | . . . Combat Hostiles . | . . . Parts Melted . | . . . Heat Transferred 731 | . 150 581 Parts Sabotaged . | . . . Parts Stolen . | . . . Parts Stripped . | . . . Power Chain Reactions 4 | . 3 1 Alert | -11 -10 -10 ------- Run | Yrd Mat Min Peak Influence 94 | . 94 88 Initial . | . . . Average 27 | . 46 14 Maximum Alert Level . | . . . Low Security (%) 100 | 100 100 100 Level 1 . | . . . Level 2 . | . . . Level 3 . | . . . Level 4 . | . . . Level 5 . | . . . High Security . | . . . Max Security . | . . . Squads Dispatched 1 | . 1 . Investigation . | . . . Extermination . | . . . Reinforcement 1 | . 1 . Assault . | . . . Garrison . | . . . Intercept . | . . . Searches Triggered . | . . . Construction Impeded . | . . . Haulers Reinforced . | . . . Active Scanning Responses . | . . . Cargo Convoy Interrupts . | . . . Stealth | -11 -10 -10 --------- Run | Yrd Mat Min Distress Signals . | . . . Communications Jammed . | . . . Distress Signals . | . . . Times Spotted 26 | . 3 23 Peak Tracking Total 14 | . 2 14 Tactical Retreats . | . . . Traps | -11 -10 -10 ------- Run | Yrd Mat Min Traps Triggered . | . . . Indirectly . | . . . Trap Hack Attempts . | . . . Triggered . | . . . Disarmed . | . . . Reprogrammed . | . . . Reused . | . . . Traps Extracted . | . . . Installed . | . . . Triggered . | . . . Machines | -11 -10 -10 ---------- Run | Yrd Mat Min Machines Disabled 1 | . . 1 Max in Single Turn 1 | . . 1 Machines Repaired . | . . . Machines Dismantled . | . . . Machines Sabotaged . | . . . Overloaded Fab Kills . | . . . Hacking | -11 -10 -10 --------- Run | Yrd Mat Min Machines Accessed 1 | . 1 . Terminals 1 | . 1 . Fabricators . | . . . Repair Stations . | . . . Recycling Units . | . . . Scanalyzers . | . . . Garrison Access . | . . . Total Hacks 2 | . 2 . Successful 2 | . 2 . Failed . | . . . Catastrophic . | . . . Database Lockouts . | . . . Manual 4 | . 4 . Terminals 2 | . 2 . Fabricators . | . . . Repair Stations . | . . . Recycling Units . | . . . Scanalyzers . | . . . Garrison Access . | . . . Terminal Hacks 2 | . 2 . Record 2 | . 2 . Fabricator Hacks . | . . . Repair Station Hacks . | . . . Recycling Unit Hacks . | . . . Scanalyzer . | . . . Garrison Access Hacks . | . . . Unauthorized Hacks . | . . . Terminals . | . . . Fabricators . | . . . Repair Stations . | . . . Recycling Units . | . . . Scanalyzers . | . . . Garrison Access . | . . . Data Cores Recovered . | . . . Used . | . . . Hacking Detections 1 | . 1 . Full Trace Events 1 | . 1 . Feedback Events . | . . . Feedback Blocked . | . . . Robot Schematics Acquired . | . . . Robots Built . | . . . Authchips . | . . . Time . | . . . Total Robot Build Rating . | . . . Part Schematics Acquired . | . . . Parts Built . | . . . Authchips . | . . . Time . | . . . Total Part Build Rating . | . . . Parts Repaired . | . . . Time . | . . . Parts Recycled . | . . . Recycled Matter . | . . . Retrieved Matter . | . . . Retrieved Components . | . . . Parts Scanalyzed . | . . . Part Schematics Acquired . | . . . Parts Damaged . | . . . Bothacking | -11 -10 -10 ------------ Run | Yrd Mat Min Used RIF Installer . | . . . Robots Hacked . | . . . Non-combat . | . . . Combat . | . . . Robot Hacks Applied . | . . . Relay Couplers Released . | . . . Fabnet Peak Effective % . | . . . Robots Rewired . | . . . Allies Hacked . | . . . Hacks Repelled . | . . . Allies | -11 -10 -10 -------- Run | Yrd Mat Min Total Allies . | . . . Largest Group . | . . . Highest-Rated Group . | . . . Highest-Rated Ally . | . . . Total Orders . | . . . Ally Attacks . | . . . Total Damage . | . . . Kills . | . . . Allies Corrupted . | . . . Allies Melted . | . . . Intel | -11 -10 -10 ------- Run | Yrd Mat Min Robot Analysis Total . | . . . Derelict Logs Recovered . | . . . Drone Launches . | . . . Drone Recoveries . | . . . Exploration | -11 -10 -10 ------------- Run | Yrd Mat Min Turns Passed 1373 | 85 587 701 Spaces Moved 512 | 67 210 235 Core 25 | 25 . . Treads . | . . . Legs 487 | 42 210 235 Wheels . | . . . Hover . | . . . Flight . | . . . Fastest Speed 50 | 50 120 260 Average Speed 237 | 93 256 260 Slowest Speed 470 | 120 260 470 Overloaded Moves . | . . . Propulsion Burnouts . | . . . Robots Hopped . | . . . Cave-ins Triggered . | . . . Exploration Rate (%) 26 | 4 29 47 Regions Visited 2 Branch Regions 1 Pre-discovered Areas 1 | . . 1 Known Exits Taken . | . . . Unknown Exits Taken 2 | 1 1 . Scrap Searched . | . . . Spaces Dug . | . . . Terrain Destroyed 71 | . 8 63 Melee . | . . . Projectile . | . . . AOE 71 | . 8 63 Terrain Rammed . | . . . Walls Destroyed . | . . . Machines Disabled . | . . . Actions | -11 -10 -10 --------- Run | Yrd Mat Min Total 619 | 89 243 287 Wait 16 | 7 7 2 Move 510 | 66 209 235 Hop . | . . . Pick Up 34 | 10 17 7 Fast Attach . | . . . Attach 17 | 6 1 10 Detach . | . . . Swap . | . . . Drop 10 | . . 10 Fire 28 | . 8 20 Melee . | . . . Ram . | . . . Kick 4 | . 1 3 Crush . | . . . Escape Stasis . | . . . Rewire . | . . . Trap . | . . . Miscellaneous . | . . . Route ------- -11/Scrapyard -10/Materials -10/Mines History --------- Turn | Location | Event 20 | -11/Scrapyard | Discovered new exit (range 16) 86 | -11/Scrapyard | Entered Materials 306 | -10/Materials | Build established: Mutant 526 | -10/Materials | Discovered new exit (range 12) 673 | -10/Materials | Entered Mines 1172 | -10/Mines | Received a Rocket Launcher from a helpful Derelict 1281 | -10/Mines | Assembled infested the area 1286 | -10/Mines | Assisted by a Guerilla fighting off Assembled 1347 | -10/Mines | Destroyed 15 combat bots 1358 | -10/Mines | Learned location of Storage (-8) 1361 | -10/Mines | Lost 6 parts (2p2n2w) 1367 | -10/Mines | Core integrity fell below 50% 1371 | -10/Mines | Core integrity fell below 20% 1374 | -10/Mines | Destroyed by D-53 Grenadier with Mini Grenade Launcher Last Messages --------------- 01331_ as-04836 destroyed. 01333_ as-44094 destroyed. 01350_ Acquired Lgt. Assault Rifle. 01351_ Acquired 72 matter. 01353_ The unstable cave ceiling collapses. 01356_ Acquired Lgt. Ion Engine. 01358_ A derelict emerges from the shadows: "Are any of them following you? I'm here trying to lose some heat after our second raid on Storage failed. Whatever you do stay away from that place, they've tightened security following our previous successful raids." World map updated: -8/Storage. 01360_ T3-6NU(g): "We scattered so the Unaware couldn't effectively use their advantage in numbers, and I suggest you do the same." 01360_ T3-6NU(g) slips back into the shadows. 01365_ Lgt. Ion Engine destroyed. 01368_ EM Pulse Gun destroyed. 01369_ Aluminum Leg destroyed. 01370_ R-06 Scavenger destroyed. 01371_ The unstable cave ceiling collapses. 01372_ Aluminum Leg destroyed. Map ----- +----------------------------------------------------+ | ?????????????????????????????????????????????????? | | ?????????????????????????????????????????????????? | | ?????????????????????????????????????????????????? | | ?????????????????????????????????????????????????? | | ??????????????? ??????????????????????????????? | | ??????????????? ????????????????????????????? | | ??????????????# %* ?????????????????????????? | | ??????????????# #????????????????????????? | | ?????????????## ##???????????????????????? | | ?????????????# ##??????????????????????? | | ????????????? # #??????????????????????? | | ?????????????# ???????????????????????? | | ?????????????### ????????????????????????? | | ?????????????# ?????????????????????????? | | ????????????## ??????????????????????????? | | ??????????### ???????????????????????????? | | ???????????# % #????????????????????????????? | | ???????????# #????????????????????????????? | | ???????????# d ####????????????????????????? | | ????????????# ###??????????????????????? | | ????????????# d ##?????????????????????? | | ????????????# # ###???????????????????? | | ????????????#?## # #???????????????????? | | ??????????????## # # #???????????????????? | | ???????????????# ## ##??????????????????? | | ???????????????# ### @ #??????????????????? | | ???????????????# #?# % #?????????????????? | | ???????#?????### #?# ! # #?????????????????? | | ??????? ?????# #?## ##???????????????????? | | ??????# #????# ###?# ##????????????????????? | | ??????# #????# #??# ###?????????????????????? | | ??????# #????# #??# #???????????????????????? | | ??????# #????# #??## ##???????????????????????? | | ??????# #????# #???#####?????????????????????????? | | ??????# #????# #?????????????????????????????????? | | ####### #??### #?????????????????????????????????? | | ## # # ##?# #?????????????????????????????????? | | ## ### ###?????????????????????????????????? | | ! !! #???????????????????????????????????? | | # ######???######??????????????????????????? | | ### #?###???## ##?????????????????????????? | | ####### ##??# ##?????????????????# ?????? | | ##??## ##?# """ #????????????????# ????? | | #??# ### """ #??????????????## ???? | | #?## """ #??????????????# ???? | | ## #### ### ##????????????## ????? | | ?####?# ## ##???????????# ?????? | | ???#### ## #???????????# ??????? | | ???# ### #???????????# #??????? | | #??# ##?## #???????????# ##?????? | +----------------------------------------------------+ Best States ------------- Heat Dissipation 25 Energy Generation 10 Energy Capacity 125 Matter Stores 300 Matter Capacity 300 Sight Range 16 Terrain Scan Density 10 Evasion (%) 50 Item Schematics ----------------- None Robot Schematics ------------------ None Fabricated ------------ Nothing Alien Tech Used ----------------- None Achievements -------------- Exterminator Challenges ------------ None Game ------ Seed SegregatorFrostAutobeam Manual? 0 Play Time 00:23:19 Cumulative 2.9 hours Start 2024.09.08 @ 15:44:43 End 2024.09.08 @ 16:32:27 Sessions 1 Manual Loads 0 Difficulty Rogue Special Mode None Game No. 8 Rogue 8 Adventurer 0 Explorer 0 Win Type - Total 0 Types 0/0/0/0/0/0/0/0/0 Lore% 1 Gallery% 5 Achievement% 7 Wizard Run 0 Options --------- Layout 0 ASCII 0 Keyboard 1 Movement Numpad Keybinds 0 Fullscreen 1 Font 18/SmallcapsGlow Map View 76x50 Zoom Use 0% Tactical HUD 1 Map Filters NONE Filters NONE Steam 1 RUN: 0b770975-ecad-4543-a86b-9ba59aae651f